bitfinex-derivatives/quotes_ETHF0:USTF0_20250910
["timestamp","ask_amount","ask_price","bid_price","bid_amount"]
[1757462697490,0.55022005,4317.1,4316.4,0.41698]
[1757462697690,0.233,4317.4,4316.3,2.07863547]
[1757462697889,0.55028274,4317.3,4316.3,2.07863547]
[1757462698090,0.55028274,4317.2,4316.3,2.07863547]
[1757462698286,0.233,4317.4,4316.4,1.66163547]
[1757462698287,0.55028274,4317.1,4316.4,1.66163547]
[1757462698484,0.233,4317.4,4316.4,1.66163547]
[1757462698688,0.55035007,4317.3,4316.4,1.66163547]
[1757462698891,0.55035007,4317.2,4316.4,1.66163547]
[1757462699087,0.55035007,4317.1,4316.4,1.66163547]
[1757462699390,0.233,4317.4,4316.4,1.66163547]
[1757462699591,0.5504472,4317.3,4316.4,1.66163547]
[1757462699889,0.5504472,4317.2,4316.4,1.66163547]
[1757462700085,0.5504472,4317.1,4316.4,1.66163547]
[1757462700288,0.233,4317.4,4316.4,1.66163547]
[1757462700479,0.55046126,4317.3,4316.4,1.66163547]
[1757462700782,0.55046126,4317.2,4316.4,1.66163547]
[1757462700981,0.55046126,4317.1,4316.4,1.66163547]
[1757462701188,1.24780609,4318.0,4316.4,1.66163547]
[1757462701379,0.55047099,4317.5,4316.8,2.07858547]
[1757462701587,0.233,4317.7,4316.9,1.66163547]
[1757462701890,0.55043182,4317.6,4316.9,1.66163547]
[1757462702087,0.233,4317.7,4316.9,2.07857547]
[1757462702288,0.233,4317.7,4316.9,0.41694]
[1757462704195,0.233,4317.7,4316.8,2.07858547]
[1757462705894,0.18589477,4318.6,4316.8,2.07858547]
[1757462706089,0.55988084,4318.5,4316.8,2.07858547]
[1757462706295,0.54988084,4318.4,4316.8,0.41695]
[1757462706595,0.78288084,4318.3,4316.8,0.41695]
[1757462706796,0.54988084,4318.2,4316.8,0.41695]
[1757462707000,0.54988084,4318.1,4316.8,0.41695]
[1757462707184,0.54988084,4318.0,4316.8,0.41695]
[1757462707390,0.54988084,4317.9,4316.8,0.41695]
[1757462707595,0.54988084,4317.8,4316.8,0.41695]
[1757462707795,0.46461,4318.3,4316.8,0.41695]
[1757462707996,0.54976307,4318.2,4316.8,0.41695]
[1757462708299,0.54976307,4318.1,4316.8,0.41695]
[1757462708498,0.54976307,4318.0,4316.8,0.41695]
[1757462708798,0.54976307,4317.9,4316.8,0.41695]
[1757462708998,0.54976307,4317.8,4316.8,0.41695]
[1757462709298,0.233,4318.3,4316.8,0.41695]
[1757462709597,0.54968861,4318.2,4316.8,0.41695]
[1757462709798,0.54968861,4318.1,4316.7,1.66163547]
[1757462709998,0.54968861,4318.0,4316.8,0.41695]
[1757462710192,0.54968861,4317.9,4316.7,2.07859547]
[1757462710393,0.54968861,4317.8,4316.7,2.07859547]
[1757462710593,0.233,4318.3,4316.7,2.07859547]
[1757462710895,0.54966449,4318.2,4316.7,1.66163547]
[1757462711193,0.54966449,4318.1,4316.7,1.66163547]
[1757462711406,0.54966449,4318.0,4316.7,1.66163547]
[1757462711598,0.54966449,4317.9,4316.7,1.66163547]
[1757462711894,0.54966449,4317.8,4316.7,1.66163547]
[1757462712097,0.46462,4318.3,4316.7,1.66163547]
[1757462712295,0.54962661,4318.2,4316.7,1.66163547]
[1757462712492,0.54962661,4318.1,4316.7,1.66163547]
[1757462712687,0.54962661,4318.0,4316.7,1.66163547]
[1757462712902,0.54962661,4317.9,4316.7,1.66163547]
[1757462713199,0.54962661,4317.8,4316.7,1.66163547]
[1757462713497,0.46462,4318.3,4316.7,1.66163547]
[1757462713698,0.54959045,4318.2,4316.7,1.66163547]
[1757462713909,0.54959045,4318.1,4316.7,1.66163547]
[1757462714092,0.54959045,4318.0,4316.7,1.66163547]
[1757462714292,0.54959045,4317.9,4316.7,1.66163547]
[1757462714497,0.46462,4318.3,4316.7,1.66163547]
[1757462714699,0.5495779,4318.2,4316.7,1.66163547]
[1757462714899,0.5495779,4318.1,4316.7,1.66163547]
[1757462715100,0.5495779,4318.0,4316.7,1.66163547]
[1757462715402,0.5495779,4317.9,4316.7,1.66163547]
[1757462715699,0.46462,4318.3,4316.7,1.66163547]
[1757462715900,0.54957277,4318.2,4316.7,1.66163547]
[1757462716195,0.54957277,4318.1,4316.7,1.66163547]
[1757462716500,0.54957277,4318.0,4316.7,1.66163547]
[1757462716700,0.54957277,4317.9,4316.7,1.66163547]
[1757462716899,0.46462,4318.3,4316.7,1.66163547]
[1757462717101,0.54957875,4318.2,4316.7,1.66163547]
[1757462717302,0.54957875,4318.1,4316.7,1.66163547]
[1757462717491,0.54957875,4318.0,4316.7,1.66163547]
[1757462717695,0.54957875,4317.9,4316.7,1.66163547]
[1757462717896,0.46462,4318.3,4316.7,1.66163547]
[1757462718096,0.54960024,4318.2,4316.7,1.66163547]
[1757462718299,0.54960024,4318.1,4316.7,1.66163547]
[1757462718604,0.54960024,4318.0,4316.7,1.66163547]
[1757462718797,0.54960024,4317.9,4316.7,1.66163547]
[1757462719000,0.54960024,4317.8,4316.7,1.66163547]
[1757462719205,0.233,4318.3,4316.7,1.66163547]
[1757462719405,0.78125665,4318.2,4316.7,1.66163547]
[1757462719604,0.54963665,4318.1,4316.7,1.66163547]
[1757462719804,0.54963665,4318.0,4316.7,1.66163547]
[1757462720103,0.54963665,4317.9,4316.7,1.66163547]
[1757462720404,0.54963665,4317.8,4316.7,1.66163547]
[1757462720611,0.23162,4318.2,4316.7,1.66163547]
[1757462720904,0.54966009,4318.1,4316.7,1.66163547]
[1757462721106,0.54966009,4318.0,4316.7,1.66163547]
[1757462721305,0.54966009,4317.9,4316.7,1.66163547]
[1757462721500,0.54966009,4317.8,4316.7,1.66163547]
[1757462721701,0.233,4318.3,4316.7,1.66163547]
[1757462721901,0.781307,4318.2,4316.7,1.66163547]
[1757462722200,0.549687,4318.1,4316.7,1.66163547]
[1757462722401,0.54972043,4318.0,4316.7,1.66163547]
[1757462722698,0.54972043,4317.9,4316.8,1.66163547]
[1757462722904,0.54972043,4317.8,4316.8,1.66163547]
[1757462723204,0.233,4318.1,4316.8,1.66163547]
[1757462723403,0.54974312,4318.0,4316.8,1.66163547]
[1757462723603,0.54974312,4317.9,4316.8,1.66163547]
[1757462723803,0.54974312,4317.8,4316.8,1.66163547]
[1757462724003,0.233,4318.1,4316.7,1.66163547]
[1757462724205,0.54975445,4318.0,4316.8,1.66163547]
[1757462724511,0.54975445,4317.9,4316.8,1.66163547]
[1757462724698,0.54975445,4317.8,4316.8,1.66163547]
[1757462725004,0.233,4318.1,4316.8,1.66163547]
[1757462725193,0.54979522,4318.0,4316.6,1.66163547]
[1757462725397,0.54979522,4317.9,4316.6,1.66163547]
[1757462725602,0.78142522,4317.9,4316.6,1.66163547]
[1757462725799,0.233,4318.1,4316.6,1.66163547]
[1757462725800,0.54979522,4317.8,4316.6,1.66163547]
[1757462725997,0.54979522,4317.7,4316.6,1.66163547]
[1757462726205,0.54979522,4317.6,4316.6,1.66163547]
[1757462726512,0.23163,4317.9,4316.6,1.66163547]
[1757462726704,0.54997169,4317.8,4316.6,1.66163547]
[1757462727006,0.54997169,4317.7,4316.4,1.66163547]
[1757462727304,0.54997169,4317.6,4316.5,1.66163547]
[1757462727499,0.54997169,4317.5,4316.5,1.66163547]
[1757462727698,0.54997169,4317.4,4316.5,1.66163547]
[1757462727898,0.23163,4317.9,4316.5,1.66163547]
[1757462728098,0.78166395,4317.8,4316.5,1.66163547]
[1757462728304,0.55003395,4317.7,4316.5,1.66163547]
[1757462728505,0.55003395,4317.6,4316.5,1.66163547]
[1757462728802,0.55003395,4317.5,4316.5,1.66163547]
[1757462729002,0.55003395,4317.4,4316.5,1.66163547]
[1757462729207,0.23163,4318.0,4316.5,1.66163547]
[1757462729503,0.55014522,4317.9,4316.5,1.66163547]
[1757462729804,0.55014522,4317.8,4316.5,1.66163547]
[1757462730005,0.55014522,4317.7,4316.5,1.66163547]
[1757462730210,0.55014522,4317.6,4316.5,1.66163547]
[1757462730400,0.55014522,4317.5,4316.5,1.66163547]
[1757462730601,0.55014522,4317.4,4316.5,1.66163547]
[1757462730804,0.23163,4317.8,4316.5,1.66163547]
[1757462731001,0.55011994,4317.7,4316.4,1.66163547]
[1757462731201,0.55011994,4317.6,4316.4,1.66163547]
[1757462731401,0.55011994,4317.5,4316.4,1.66163547]
[1757462731602,0.55011994,4317.4,4316.4,1.66163547]
[1757462731802,0.55011994,4317.3,4316.4,1.66163547]
[1757462732007,0.23163,4317.8,4316.4,1.66163547]
[1757462732210,0.54981707,4317.7,4316.4,1.66163547]
[1757462732410,0.54981707,4317.6,4316.4,1.66163547]
[1757462732610,0.54981707,4317.5,4316.4,1.66163547]
[1757462732907,0.54981707,4317.4,4316.4,1.66163547]
[1757462733107,0.54981707,4317.3,4316.4,1.66163547]
[1757462733312,0.23163,4318.0,4316.4,1.66163547]
[1757462733509,0.54973135,4317.9,4316.4,1.66163547]
[1757462733708,0.78136135,4317.8,4316.4,1.66163547]
[1757462733910,0.54973135,4317.7,4316.4,1.66163547]
[1757462734110,0.54973135,4317.6,4316.4,1.66163547]
[1757462734309,0.54973135,4317.5,4316.4,1.66163547]
[1757462734513,0.54973135,4317.4,4316.4,1.66163547]
[1757462734703,0.54973135,4317.3,4316.4,1.66163547]
[1757462734908,0.23163,4318.0,4316.4,1.66163547]
[1757462735101,0.54969525,4317.9,4316.4,1.66163547]
[1757462735308,0.54969525,4317.8,4316.4,1.66163547]
[1757462735509,0.54969525,4317.7,4316.4,1.66163547]
[1757462735703,0.54969525,4317.6,4316.4,1.66163547]
[1757462735908,0.54969525,4317.5,4316.4,1.66163547]
[1757462736111,0.54969525,4317.4,4316.4,1.66163547]
[1757462736310,0.23163,4318.0,4316.4,1.66163547]
[1757462736610,0.54965103,4317.9,4316.4,1.66163547]
[1757462736818,0.54965103,4317.8,4316.4,1.66163547]
[1757462737017,0.54965103,4317.7,4316.4,1.66163547]
[1757462737210,0.54965103,4317.6,4316.4,1.66163547]
[1757462737410,0.54965103,4317.5,4316.4,1.66163547]
[1757462737718,0.54965103,4317.4,4316.4,1.66163547]
[1757462738017,0.23163,4318.0,4316.4,1.66163547]
[1757462738209,0.54963234,4317.9,4316.4,1.66163547]
[1757462738410,0.54963234,4317.8,4316.4,1.66163547]
[1757462738715,0.54963234,4317.7,4316.4,1.66163547]
[1757462738914,0.54963234,4317.6,4316.4,1.66163547]
[1757462739117,0.54963234,4317.5,4316.4,1.66163547]
[1757462739414,0.54963234,4317.4,4316.4,1.66163547]
[1757462739616,0.23163,4317.9,4316.4,1.66163547]
[1757462739817,0.54960934,4317.8,4316.4,1.66163547]
[1757462740004,0.54960934,4317.7,4316.4,1.66163547]
[1757462740206,0.54960934,4317.6,4316.4,1.66163547]
[1757462740408,0.54960934,4317.5,4316.4,1.66163547]
[1757462740619,0.54960934,4317.4,4316.4,1.66163547]
[1757462740918,0.23163,4317.9,4316.4,1.66163547]
[1757462741215,0.54960572,4317.8,4316.4,1.66163547]
[1757462741418,0.54960572,4317.7,4316.4,1.66163547]
[1757462741611,0.54960572,4317.6,4316.4,1.66163547]
[1757462741810,0.233,4318.1,4316.4,1.66163547]
[1757462741811,0.54960572,4317.5,4316.4,1.66163547]
[1757462742018,0.54960572,4317.4,4316.4,1.66163547]
[1757462742215,0.23163,4317.9,4316.4,1.66163547]
[1757462742516,0.5496029,4317.8,4316.4,1.66163547]
[1757462742719,0.23163,4318.0,4316.4,1.66163547]
[1757462742720,0.5496029,4317.7,4316.4,1.66163547]
[1757462742909,0.5496029,4317.6,4316.4,1.66163547]
[1757462743109,0.5496029,4317.5,4316.4,1.66163547]
[1757462743315,0.5496029,4317.4,4316.4,1.66163547]
[1757462743510,0.23163,4317.9,4316.4,1.66163547]
[1757462743712,0.54960424,4317.8,4316.4,1.66163547]
[1757462743924,0.54960424,4317.7,4316.4,1.66163547]
[1757462744216,0.54960424,4317.7,4315.9,2.07696633]
[1757462744217,0.54960424,4317.6,4315.8,1.66163547]
[1757462744419,2.02909034,4317.6,4315.7,1.66163547]
[1757462744618,0.78128425,4317.5,4315.7,1.66163547]
[1757462744817,0.54960424,4317.4,4315.7,1.66163547]
[1757462745021,1.4794661,4317.4,4315.5,1.66163547]
[1757462745322,1.24780609,4317.2,4315.1,1.66163547]
[1757462745524,0.074,4317.1,4315.1,1.66163547]
[1757462745716,0.54960424,4317.0,4315.1,1.66163547]
[1757462745915,0.54960424,4317.0,4315.0,1.66163547]
[1757462745916,0.54960424,4316.9,4315.0,1.66163547]
[1757462746112,0.54960424,4316.8,4315.0,1.66163547]
[1757462746317,33.92160424,4316.7,4314.9,1.66163547]
[1757462746520,0.54960424,4316.6,4314.9,1.66163547]
[1757462746719,0.54960424,4316.5,4314.9,1.66163547]
[1757462746926,0.54960424,4316.4,4314.9,1.66163547]
[1757462747131,0.54960424,4316.3,4314.8,1.66163547]
[1757462747323,0.233,4316.2,4314.8,1.66163547]
[1757462747717,0.128,4316.0,4314.8,1.66163547]
[1757462748125,0.2938,4315.9,4314.8,1.66163547]
[1757462748320,0.2938,4315.8,4314.7,1.66163547]
[1757462748826,0.2938,4315.8,4314.8,0.23174]
[1757462749230,0.2938,4315.8,4314.9,0.23173]
[1757462749423,0.2938,4315.8,4314.8,0.23174]
[1757462749826,0.2938,4315.8,4314.9,0.23173]
[1757462750017,0.2938,4315.8,4314.8,0.23174]
[1757462750428,0.2938,4315.8,4314.9,0.23173]
[1757462750623,0.2938,4315.8,4314.8,0.23174]
[1757462751624,0.5069,4315.8,4314.8,0.23174]
[1757462751926,0.128,4316.0,4314.7,0.41715]
[1757462752130,0.2938,4315.4,4314.8,0.23173]
[1757462752327,0.2938,4315.4,4314.5,1.66163547]
[1757462752528,0.128,4315.5,4314.5,1.66163547]
[1757462752725,0.2131,4315.3,4314.5,1.66163547]
[1757462752929,0.128,4315.5,4314.6,0.64889999]
[1757462753637,0.2938,4315.4,4314.6,0.64889999]
[1757462753835,0.2938,4315.4,4314.6,0.41715]
[1757462754237,0.2938,4315.4,4314.7,0.41715]
[1757462755331,0.2938,4315.4,4314.5,1.66163547]
[1757462755532,0.5069,4315.4,4314.6,0.23174999]
[1757462755730,0.2131,4315.4,4314.5,1.66163547]
[1757462755925,0.128,4315.5,4314.5,2.07880547]
[1757462755926,0.5069,4315.3,4314.5,2.07880547]
[1757462756130,0.2938,4315.3,4314.7,0.41714]
[1757462756736,0.2938,4315.3,4314.8,0.41714]
[1757462757739,0.2938,4315.3,4314.9,0.41713]
[1757462758035,0.2938,4315.3,4314.8,0.41714]
[1757462758638,0.2938,4315.3,4314.7,0.41715]
[1757462760544,0.2938,4315.9,4314.8,1.04286]
[1757462760744,0.128,4316.5,4314.2,2.08599]
[1757462760745,0.2938,4316.4,4315.1,2.70441547]
[1757462760941,0.2938,4316.3,4315.4,0.41708]
[1757462761143,0.128,4316.5,4315.3,0.41709]
[1757462761337,0.2938,4316.4,4315.6,0.41706]
[1757462761651,0.128,4316.5,4315.6,0.41706]
[1757462761945,0.128,4316.5,4315.3,1.66163547]
[1757462762150,0.128,4316.5,4315.2,2.07872547]
[1757462762347,0.2938,4316.4,4315.2,2.07872547]
[1757462762548,0.128,4316.5,4315.3,0.41709]
[1757462763052,0.2938,4316.4,4315.4,0.41708]
[1757462763252,0.128,4316.5,4315.4,0.41708]
[1757462764154,0.2938,4316.4,4315.4,0.41708]
[1757462764658,0.2131,4316.3,4315.5,0.41707]
[1757462764847,0.2938,4316.1,4315.3,2.07872547]
[1757462765155,0.2938,4315.9,4315.3,2.07872547]
[1757462765348,0.2131,4315.9,4315.3,1.66163547]
[1757462765654,0.2938,4315.7,4315.4,0.41708]
[1757462765841,0.2938,4315.9,4315.4,0.41708]
[1757462766547,0.2938,4315.8,4315.5,0.41707]
[1757462766852,0.128,4316.0,4315.6,0.41705]
[1757462767052,0.4218,4316.0,4315.6,0.41705]
[1757462767353,0.2938,4315.9,4315.6,0.41705]
[1757462767855,0.2938,4315.9,4315.6,0.41706]
[1757462768152,0.2938,4315.9,4315.6,2.07869547]
[1757462769350,0.128,4316.0,4315.6,2.07869547]
[1757462769551,0.4218,4316.0,4315.6,2.07869547]
[1757462769751,0.2938,4315.9,4315.6,2.07869547]
[1757462770057,0.2938,4315.9,4315.6,1.66163547]
[1757462770351,0.128,4316.0,4315.6,1.66163547]
[1757462770554,0.128,4316.0,4315.6,2.07869547]
[1757462770955,0.2938,4315.9,4315.6,1.66163547]
[1757462771350,0.128,4316.0,4315.6,1.66163547]
[1757462772158,0.128,4316.0,4315.7,1.66163547]
[1757462772555,0.2938,4315.9,4315.7,1.66163547]
[1757462772758,0.128,4316.0,4315.7,1.66163547]
[1757462772959,0.2938,4315.8,4315.7,1.66163547]
[1757462776063,0.4218,4316.0,4315.7,2.07868547]
[1757462776259,0.2938,4316.4,4316.0,0.41702]
[1757462776560,0.2131,4316.4,4316.0,1.65773264]
[1757462776757,0.3069,4316.4,4316.0,1.65773264]
[1757462776958,0.2075,4316.4,4316.0,1.65773264]
[1757462777159,0.3069,4316.4,4316.0,1.65773264]
[1757462777360,0.3355,4316.5,4316.0,1.65773264]
[1757462777663,0.3069,4316.3,4316.0,1.65773264]
[1757462777866,0.3069,4316.4,4316.0,1.65773264]
[1757462778165,0.2075,4316.4,4316.0,1.65773264]
[1757462778360,0.3355,4316.5,4316.0,1.65773264]
[1757462778564,0.3069,4316.4,4316.0,1.65773264]
[1757462779163,0.3355,4316.5,4316.0,1.65773264]
[1757462779366,0.3069,4316.4,4316.0,1.65773264]
[1757462779960,0.3069,4316.3,4316.0,1.65773264]
[1757462780170,0.128,4316.5,4316.0,1.65773264]
[1757462780171,0.3355,4316.5,4316.0,1.65773264]
[1757462780368,0.3069,4316.4,4316.0,1.65773264]
[1757462781368,0.2075,4316.3,4316.0,1.65773264]
[1757462781663,0.3069,4316.4,4316.0,1.65773264]
[1757462782577,0.2075,4316.1,4316.0,1.65773264]
[1757462782869,0.4311,4316.0,4315.9,1.65773264]
[1757462783063,0.4033,4315.9,4315.8,1.65773264]
[1757462783263,0.7102,4315.9,4315.8,1.65773264]
[1757462783668,0.4033,4315.9,4315.5,0.41707]
[1757462783969,0.3069,4315.8,4315.5,0.41707]
[1757462784172,0.5144,4315.9,4315.5,0.41707]
[1757462784470,0.1242,4316.0,4315.5,0.41707]
[1757462784672,0.8344,4316.0,4315.9,1.65751106]
[1757462788471,0.7102,4315.7,4315.6,1.65908047]
[1757462788866,0.3069,4315.6,4315.5,1.65908047]
[1757462789066,0.7102,4315.6,4315.5,1.65908047]
[1757462794973,0.7102,4315.6,4315.4,1.65908047]
[1757462795179,0.7102,4315.6,4315.5,1.65908047]
[1757462795472,0.8344,4315.5,4315.4,1.65908047]
[1757462798481,0.5275,4315.5,4315.3,1.65908047]
[1757462798678,0.7102,4315.4,4315.3,1.65908047]
[1757462799080,0.1242,4315.5,4314.7,1.65908047]
[1757462799081,0.4311,4315.0,4314.7,1.65908047]
[1757462799384,0.3069,4314.7,4314.6,1.65908047]
[1757462799574,0.7102,4314.7,4314.6,1.65908047]
[1757462799974,0.1242,4314.5,4314.4,1.65908047]
[1757462800184,0.4033,4314.3,4314.1,1.65908047]
[1757462800485,0.3069,4314.1,4314.0,1.65908047]
[1757462800682,0.7102,4314.1,4314.0,1.65908047]
[1757462801283,0.1242,4314.0,4313.9,1.65908047]
[1757462801479,0.6386,4314.0,4313.9,1.65908047]
[1757462801681,0.8344,4314.0,4313.9,1.65908047]
[1757462802783,0.3069,4313.9,4313.8,1.65908047]
[1757462802984,0.5144,4313.9,4313.8,1.65908047]
[1757462803478,0.3069,4313.8,4313.7,1.65908047]
[1757462803683,0.5144,4313.8,4313.7,1.65908047]
[1757462803883,0.7102,4313.8,4313.7,1.65908047]
[1757462804386,0.3069,4313.7,4313.6,0.00347766]
[1757462804680,0.7102,4313.7,4313.6,0.00347766]
[1757462813786,0.1236,4312.5,4312.4,0.42836]
[1757462813991,0.6533,4312.5,4312.4,0.42836]
[1757462814488,0.4447,4312.5,4312.4,0.43176]
[1757462816492,0.3211,4312.5,4312.4,0.43176]
[1757462819097,0.4447,4312.5,4312.4,0.43176]
[1757462820595,0.6533,4312.5,4312.4,0.42836]
[1757462820889,0.86,4312.5,4312.4,0.011]
[1757462821087,0.86,4312.5,4312.4,0.0055]
[1757462821795,0.7364,4312.2,4312.1,34.0304]
[1757462821995,0.5297,4312.2,4312.1,34.0304]
[1757462823095,0.3211,4312.2,4312.1,34.0338]
[1757462823799,0.3211,4312.2,4312.1,0.6648]
[1757462824499,0.3211,4312.2,4312.1,2.32388047]
[1757462824798,0.3211,4312.2,4312.1,2.32048047]
[1757462825699,0.2086,4313.3,4313.2,0.5248]
[1757462825997,0.5297,4313.3,4313.2,0.5248]
[1757462826193,0.5297,4313.3,4313.2,0.3978]
[1757462826992,0.1236,4313.0,4312.6,1.65716943]
[1757462827196,0.1236,4313.0,4312.4,1.89016943]
[1757462827197,0.3211,4312.6,4312.4,1.89016943]
[1757462827496,0.86,4312.5,4312.4,0.4276]
[1757462828000,0.86,4312.5,4312.4,0.84497]
[1757462828499,0.86,4312.5,4312.4,2.70533943]
[1757462829301,0.86,4312.5,4312.4,1.04817]
[1757462830601,0.3211,4312.9,4312.8,0.81513]
[1757462830791,0.3211,4312.9,4312.8,0.94213]
[1757462831399,0.3211,4312.9,4312.8,2.6033685]
[1757462831898,0.3211,4313.5,4313.4,0.81508]
[1757462832095,0.3211,4313.5,4313.4,2.83599011]
[1757462832296,0.4447,4313.5,4313.4,2.83599011]
[1757462832496,0.6533,4313.5,4313.4,2.83599011]
[1757462833303,0.6533,4313.5,4313.4,1.17508]
[1757462834697,0.3211,4313.5,4313.4,1.17508]
[1757462836804,0.4447,4313.5,4313.4,1.17508]
[1757462837600,0.1242,4314.0,4313.9,0.4068]
[1757462837908,0.1242,4314.0,4313.9,0.95103]
[1757462838101,0.5328,4314.0,4313.9,0.4068]
[1757462838304,0.844,4314.0,4313.9,0.2034]
[1757462838907,0.844,4314.0,4313.7,1.89454843]
[1757462838908,0.3112,4313.9,4313.7,1.89454843]
[1757462839210,0.7198,4313.9,4313.8,0.2034]
[1757462839706,0.3112,4313.8,4313.7,1.89454843]
[1757462839905,0.7198,4313.8,4313.7,0.233]
[1757462840102,0.7198,4313.8,4313.7,1.89454843]
[1757462840404,0.7198,4313.8,4313.7,2.09794843]
[1757462840805,0.7198,4313.8,4313.7,1.66154843]
[1757462841005,0.7198,4313.8,4312.7,2.91540374]
[1757462841006,0.7198,4313.6,4313.5,1.66154843]
[1757462841210,0.118,4313.5,4313.4,1.66154843]
[1757462841410,0.8378,4313.5,4313.4,1.66154843]
[1757462841708,4.8378,4313.5,4313.3,1.33824843]
[1757462841907,0.8378,4312.5,4312.4,3.12830374]
[1757462842203,0.8378,4312.5,4312.4,0.4459]
[1757462844912,0.8378,4312.5,4312.4,0.964]
[1757462846217,0.8378,4312.5,4312.4,0.731]
[1757462846417,0.8378,4312.5,4312.4,0.4219]
[1757462847123,0.8378,4312.5,4312.4,0.731]
[1757462848518,0.8378,4312.5,4312.3,0.41738]
[1757462848719,0.8378,4312.5,4312.4,0.2129]
[1757462853325,0.3112,4312.5,4312.4,1.14837]
[1757462853527,0.118,4313.5,4313.0,0.3091]
[1757462853729,0.118,4313.5,4313.4,0.731]
[1757462853730,0.5266,4313.5,4313.4,0.731]
[1757462853930,0.8378,4313.5,4313.4,0.731]
[1757462855729,0.7198,4313.5,4313.4,0.731]
[1757462855927,0.3112,4313.9,4313.6,0.3091]
[1757462856126,0.3112,4313.9,4313.8,0.731]
[1757462857323,0.3112,4313.9,4313.8,2.39205111]
[1757462857728,0.7198,4313.9,4313.8,2.39205111]
[1757462862425,0.7198,4313.9,4313.8,0.731]
[1757462862830,0.7198,4313.9,4313.8,1.14824]
[1757462863231,0.7198,4313.9,4313.8,0.731]
[1757462868333,0.7198,4313.9,4313.8,1.14824]
[1757462868939,0.7198,4313.9,4313.8,1.38124]
[1757462869134,0.7198,4313.9,4313.8,0.964]
[1757462871739,0.4146,4313.7,4313.6,1.66105111]
[1757462871940,0.7284,4313.7,4313.6,1.66105111]
[1757462872440,0.7284,4313.7,4313.6,1.87255111]
[1757462876337,0.7284,4313.7,4313.4,0.3102]
[1757462876338,0.7284,4313.7,4313.4,0.233]
[1757462876543,0.8506,4313.5,4313.4,0.233]
[1757462876936,0.8506,4313.5,4313.4,0.4445]
[1757462877236,0.8506,4313.5,4313.4,0.2115]
[1757462877436,0.8506,4313.5,4313.4,0.5217]
[1757462877637,0.5253,4313.5,4313.4,0.7321]
[1757462879842,0.8506,4313.5,4313.4,0.2115]
[1757462880043,0.8506,4313.5,4313.4,0.5217]
[1757462880845,0.7284,4313.4,4313.3,0.233]
[1757462881039,0.4146,4313.4,4313.1,2.30996633]
[1757462881234,0.1222,4313.5,4313.0,2.07696633]
[1757462881235,0.7284,4313.2,4313.0,2.07696633]
[1757462881440,0.7284,4313.2,4312.7,0.41733]
[1757462881441,0.1222,4313.0,4312.7,2.07696633]
[1757462881636,0.7284,4312.8,4312.7,0.233]
[1757462882134,0.7284,4312.8,4312.7,0.9651]
[1757462882642,0.7284,4312.8,4312.7,0.6549]
[1757462883549,0.7284,4312.8,4312.7,0.233]
[1757462884054,0.7284,4312.8,4312.7,1.38244]
[1757462884241,0.7284,4312.8,4312.7,0.9651]
[1757462886745,0.7284,4312.8,4312.7,0.6549]
[1757462887147,0.7284,4312.8,4312.7,0.4445]
[1757462888147,0.7284,4312.8,4312.7,0.2115]
[1757462888451,0.7284,4312.8,4312.7,0.62884]
[1757462890249,0.7284,4312.8,4312.5,0.41735]
[1757462890451,0.8506,4312.5,4312.4,2.07696633]
[1757462890650,0.8506,4312.5,4312.4,1.66307895]
[1757462890954,0.8506,4312.5,4311.3,1.22614618]
[1757462890955,0.3138,4312.3,4312.2,1.66307895]
[1757462891148,0.3138,4312.2,4312.1,1.66307895]
[1757462891346,0.7284,4312.1,4312.0,1.66307895]
[1757462893251,0.4146,4312.1,4311.9,1.66307895]
[1757462893456,0.5368,4312.0,4311.7,1.66307895]
[1757462893657,0.7284,4311.9,4311.8,0.2115]
[1757462895345,0.3138,4311.8,4311.5,1.71863231]
[1757462895550,0.7284,4311.6,4311.5,0.05555336]
[1757462895854,0.7284,4311.6,4311.5,0.26705336]
[1757462896650,0.7284,4311.6,4311.5,0.78765336]
[1757462898056,0.7284,4311.6,4311.5,1.20511336]
[1757462898653,0.5253,4311.6,4311.5,1.20511336]
[1757462899058,0.5253,4311.6,4311.5,0.78765336]
[1757462899358,0.5253,4311.6,4311.5,1.20511336]
[1757462899857,0.5253,4311.6,4311.5,0.78765336]
[1757462900359,0.5253,4311.6,4311.5,1.20511336]
[1757462901558,0.5253,4311.6,4311.5,0.78765336]
[1757462902159,0.5253,4311.6,4311.5,1.20511336]
[1757462903463,0.7287,4311.6,4311.5,0.78765336]
[1757462904067,0.7287,4311.6,4311.5,0.47745336]
[1757462904757,0.7287,4311.6,4311.5,0.26705336]
[1757462907866,0.7287,4311.6,4311.5,0.05555336]
[1757462908062,0.7287,4311.6,4311.5,1.18771336]
[1757462908269,0.5253,4311.6,4311.5,1.18771336]
[1757462908770,0.7287,4311.6,4311.5,0.77025336]
[1757462911273,0.7287,4311.6,4311.5,0.05555336]
[1757462911668,0.7287,4311.6,4311.5,0.26105336]
[1757462912274,0.7287,4311.6,4311.5,1.92413231]
[1757462913070,0.7287,4311.6,4311.5,0.05555336]
[1757462920174,0.7287,4311.6,4311.5,1.71863231]
[1757462923084,0.7287,4311.6,4311.5,0.05555336]
[1757462924792,0.7287,4311.6,4311.5,0.26105336]
[1757462924994,0.7287,4311.6,4311.5,0.05555336]
[1757462927487,0.7287,4311.6,4311.5,0.26105336]
[1757462927695,0.5253,4311.6,4311.5,2.85069231]
[1757462929495,0.5253,4311.6,4311.5,2.43323231]
[1757462932094,0.7215,4311.6,4311.5,2.43323231]
[1757462936301,0.7215,4311.6,4311.5,0.77015336]
[1757462938403,0.5253,4311.6,4311.5,1.18761336]
[1757462938903,0.5253,4311.6,4311.5,0.77015336]
[1757462940500,0.7215,4311.6,4311.5,0.77015336]
[1757462941106,0.7215,4311.6,4311.5,0.45935336]
[1757462941309,0.7215,4311.6,4311.5,0.05555336]
[1757462941499,0.7215,4311.6,4311.5,1.72541439]
[1757462942102,0.7215,4311.6,4311.5,0.05555336]
[1757462950916,0.4077,4311.6,4311.0,1.66986103]
[1757462951216,0.5204,4311.0,4310.8,1.66986103]
[1757462951417,0.7147,4310.9,4310.8,1.87906103]
[1757462952511,0.7147,4310.9,4310.8,2.38816103]
[1757462953012,0.7147,4310.9,4310.8,1.87906103]
[1757462953519,0.7147,4310.9,4310.8,0.2092]
[1757462953713,0.3119,4310.8,4310.7,1.66986103]